bitfinex-derivatives/quotes_ETHF0:USTF0_20250403
["timestamp","ask_amount","ask_price","bid_price","bid_amount"]
[1743699604218,1.4992,1774.1,1774.0,1.12764]
[1743699604624,2.62684,1774.1,1774.0,1.12764]
[1743699605028,1.4992,1774.1,1774.0,1.12764]
[1743699605222,1.4992,1774.1,1773.8,3.55038]
[1743699605427,2.62689,1774.1,1774.0,1.12771]
[1743699605629,1.4992,1774.1,1774.0,1.12771]
[1743699606025,2.62684,1774.1,1774.0,1.12771]
[1743699606332,1.4992,1774.1,1774.0,1.12771]
[1743699607123,3.2078,1774.4,1774.0,7.2008]
[1743699607331,1.12743,1774.5,1774.4,1.1274]
[1743699607525,1.12751,1774.4,1774.3,1.12748]
[1743699607720,1.12756,1774.3,1774.2,1.12753]
[1743699607920,1.12756,1774.3,1774.1,1.12761]
[1743699607921,1.12764,1774.2,1774.1,1.12761]
[1743699608121,1.12764,1774.1,1774.0,1.12764]
[1743699608430,1.12762,1774.2,1774.1,1.12758]
[1743699608923,1.12762,1774.2,1773.9,8.20681]
[1743699608924,1.12771,1774.1,1773.9,5.3875]
[1743699609127,1.12771,1774.1,1774.0,1.12763]
[1743699609128,4.33551,1774.1,1774.0,1.12763]
[1743699609332,1.12759,1774.2,1774.1,1.12758]
[1743699609530,5.81189,1774.3,1774.2,1.12758]
[1743699610027,1.12764,1774.2,1774.1,1.12759]
[1743699610335,1.12764,1774.1,1774.0,1.12763]
[1743699612931,1.3966,1774.2,1774.1,1.12764]
[1743699612932,2.52421,1774.2,1774.1,1.12764]
[1743699613129,1.12769,1774.1,1774.0,1.12765]
[1743699613634,3.2078,1774.1,1773.8,1.4476]
[1743699613833,1.12776,1774.0,1773.9,1.12772]
[1743699614222,1.12776,1774.0,1773.9,1.12777]
[1743699614425,1.12761,1774.2,1774.1,1.12758]
[1743699615532,1.12764,1774.1,1774.0,2.63463]
[1743699615928,3.9461,1774.3,1774.2,1.12758]
[1743699616228,3.2078,1774.3,1774.2,1.12758]
[1743699616627,3.2078,1774.3,1774.2,2.62028]
[1743699617235,1.12764,1774.1,1774.0,5.12062]
[1743699617428,1.84903,1774.2,1774.1,1.12764]
[1743699618332,0.7214,1774.2,1774.1,1.12764]
[1743699618735,5.03356,1774.3,1774.2,1.12758]
[1743699618934,3.2078,1774.3,1774.2,1.12758]
[1743699619127,3.2078,1774.3,1774.1,2.60708]
[1743699619335,4.33534,1774.3,1774.2,1.12758]
[1743699619535,3.2078,1774.3,1774.2,1.12758]
[1743699619835,4.33532,1774.3,1774.2,1.12758]
[1743699620232,3.2078,1774.3,1774.2,1.12758]
[1743699620834,3.2078,1774.3,1774.2,1.86848]
[1743699621034,1.12739,1774.5,1774.4,1.12745]
[1743699621335,4.34081592,1774.6,1774.5,1.12739]
[1743699621535,1.12745,1774.5,1774.4,1.1274]
[1743699621932,1.12745,1774.4,1774.3,1.82976]
[1743699622140,1.12752,1774.3,1774.2,1.12752]
[1743699623138,1.12762,1774.2,1774.1,1.12757]
[1743699623332,4.33542,1774.2,1774.1,1.12757]
[1743699623838,1.12764,1774.1,1774.0,11.09065]
[1743699624038,1.12764,1774.1,1774.0,5.12065]
[1743699624940,4.33543,1774.2,1774.1,1.12764]
[1743699625337,4.3353,1774.4,1774.3,1.12752]
[1743699625536,3.2078,1774.4,1774.3,1.12752]
[1743699625735,3.2078,1774.4,1774.3,5.11952]
[1743699625937,1.4803,1774.5,1774.4,1.12745]
[1743699626133,1.4803,1774.5,1774.4,2.51625]
[1743699627137,3.2078,1775.0,1774.9,1.12713]
[1743699627350,4.6881,1775.0,1774.9,1.12713]
[1743699627534,4.6881,1775.0,1774.9,41.92713]
[1743699627729,4.6881,1775.0,1774.9,43.31593]
[1743699628341,1.4803,1775.0,1774.9,43.31593]
[1743699629642,3.2078,1775.3,1775.2,1.12694]
[1743699629846,4.6911,1775.5,1775.4,1.12682]
[1743699630146,5.81785,1775.5,1775.4,1.12682]
[1743699630333,4.6911,1775.5,1775.2,1.4656]
[1743699630533,1.4833,1775.4,1775.3,1.12688]
[1743699630736,1.4833,1775.4,1775.2,1.12689]
[1743699630940,1.1269,1775.3,1775.2,1.12689]
[1743699631142,1.8232,1775.3,1775.2,1.12689]
[1743699631339,1.12694,1775.2,1775.1,1.12696]
[1743699631545,2.57744,1775.2,1775.1,1.12696]
[1743699631738,1.12707,1775.0,1774.9,11.08811]
[1743699631938,1.12707,1775.0,1774.9,5.11811]
[1743699632142,6.48936,1775.1,1775.0,1.12707]
[1743699632338,5.03886,1775.1,1775.0,1.12707]
[1743699632535,1.12707,1775.0,1774.9,1.12707]
[1743699633043,5.03885,1775.1,1775.0,1.12707]
[1743699633842,5.03885,1775.1,1774.8,5.05794379]
[1743699633843,3.9118,1775.1,1774.8,5.05794379]
[1743699634043,5.03886,1775.1,1775.0,1.12707]
[1743699635345,1.12712,1775.0,1774.9,1.12707]
[1743699635647,3.9118,1775.1,1774.8,2.23995379]
[1743699635944,5.03887,1775.1,1775.0,1.12707]
[1743699636540,4.33487,1775.1,1775.0,1.12707]
[1743699636738,1.12713,1774.9,1774.8,1.13559379]
[1743699636937,4.33493,1774.9,1774.8,0.00845379]
[1743699637245,3.2078,1774.9,1774.8,1.13565379]
[1743699637944,3.2078,1775.1,1774.9,1.12713]
[1743699638144,4.33482,1775.1,1775.0,1.12707]
[1743699638448,4.33482,1775.2,1775.1,1.12698]
[1743699638944,1.12701,1775.1,1775.0,1.12701]
[1743699640546,3.2078,1775.2,1775.1,1.12701]
[1743699640744,3.2078,1775.6,1775.3,1.12688]
[1743699641048,3.2078,1776.1,1775.4,7.1978]
[1743699641244,4.33421,1776.1,1776.0,1.12639]
[1743699641442,1.1265,1775.9,1775.8,5.11653]
[1743699641639,1.1265,1775.9,1775.8,45.91653]
[1743699641946,1.12648,1776.0,1775.9,1.12649]
[1743699642436,4.3342,1776.1,1776.0,1.12644]
[1743699642641,3.2078,1776.1,1775.8,44.79]
[1743699642841,4.33423,1776.1,1776.0,1.12644]
[1743699643247,1.12646,1776.0,1775.9,1.12646]
[1743699643446,4.33422,1776.1,1776.0,1.12644]
[1743699643952,1.1265,1776.0,1775.9,1.12648]
[1743699644142,1.1265,1775.9,1775.8,45.9165]
[1743699644344,1.12647,1776.0,1775.9,1.1265]
[1743699644647,1.12644,1776.0,1775.9,1.1265]
[1743699644944,3.2078,1776.1,1776.0,1.12644]
[1743699645545,4.33417,1776.1,1775.8,46.2696]
[1743699645851,1.4633,1776.0,1775.9,1.12645]
[1743699646151,2.58974,1776.0,1775.9,1.12645]
[1743699646543,1.4633,1776.0,1775.9,1.12645]
[1743699646950,1.4633,1776.0,1775.7,1.13504379]
[1743699647147,3.2078,1775.8,1775.7,5.12404379]
[1743699647345,1.12656,1775.8,1775.7,3.99745379]
[1743699647548,2.63646,1775.8,1775.7,0.00845379]
[1743699647853,5.84426,1775.8,1775.7,0.00845379]
[1743699648050,8.34426,1775.8,1775.7,0.00845379]
[1743699648243,1.12682,1775.4,1775.3,1.12684]
[1743699648442,1.12694,1775.2,1775.1,2.60856]
[1743699648654,1.12702,1775.1,1775.0,1.12702]
[1743699648843,1.12702,1775.1,1775.0,41.92707]
[1743699648844,1.5099,1775.1,1775.0,41.92707]
[1743699649049,1.4163,1775.3,1775.0,41.92707]
[1743699649050,0.723,1775.3,1775.2,1.12694]
[1743699649253,1.84988,1775.3,1775.2,1.12694]
[1743699649849,3.2078,1775.4,1775.3,1.12688]
[1743699650049,3.9011,1775.6,1775.5,1.12675]
[1743699650244,1.12666,1775.7,1775.6,1.12669]
[1743699650448,1.4444,1775.7,1775.6,1.12669]
[1743699651457,2.57103,1775.7,1775.6,1.12669]
[1743699651752,2.57103,1775.7,1775.4,3.988]
[1743699651753,1.4444,1775.7,1775.4,3.988]
[1743699651955,1.12692,1775.3,1775.2,1.12692]
[1743699652160,1.12694,1775.2,1775.1,3.99645379]
[1743699652454,1.4444,1775.2,1775.1,1.13546379]
[1743699652660,2.57134,1775.2,1775.1,1.13546379]
[1743699652958,2.57134,1775.2,1775.1,0.00845379]
[1743699653554,2.57134,1775.2,1775.1,1.13546379]
[1743699653752,2.57134,1775.2,1775.1,0.00845379]
[1743699654758,1.4444,1775.2,1775.1,1.13546379]
[1743699654957,2.57134,1775.2,1775.1,1.13546379]
[1743699655949,0.744,1775.4,1775.3,1.12688]
[1743699656448,3.2078,1775.5,1775.4,1.12682]
[1743699656654,3.2078,1775.7,1775.6,1.12669]
[1743699656854,0.71,1775.8,1775.7,1.12663]
[1743699657161,3.21625379,1775.9,1775.8,1.12656]
[1743699657461,5.85279379,1775.9,1775.8,1.12656]
[1743699657960,1.1266,1775.8,1775.7,1.12657]
[1743699658154,2.6366,1775.8,1775.7,1.12657]
[1743699658349,1.12667,1775.7,1775.6,1.12664]
[1743699658561,4.7178,1775.7,1775.6,1.12664]
[1743699658762,5.84443,1775.7,1775.6,1.12664]
[1743699658949,4.7178,1775.7,1775.6,1.12664]
[1743699659154,4.7178,1775.7,1775.5,1.1267]
[1743699659349,1.3951,1775.6,1775.5,1.1267]
[1743699660459,0.00845379,1775.9,1775.8,1.12656]
[1743699660656,2.53005379,1775.9,1775.8,1.12656]
[1743699661163,5.73785379,1775.9,1775.8,1.12656]
[1743699662862,4.61135379,1775.9,1775.8,1.12656]
[1743699663060,1.40355379,1775.9,1775.8,1.12656]
[1743699663253,2.6181,1776.4,1776.0,2.81598]
[1743699663564,2.65146,1776.3,1776.2,1.12631]
[1743699663760,1.5252,1776.3,1776.2,41.92631]
[1743699664959,3.2078,1776.5,1776.4,1.12618]
[1743699665161,4.33394,1776.5,1776.4,1.12618]
[1743699665358,3.2078,1776.5,1776.4,1.12618]
[1743699665562,4.33392,1776.5,1776.4,41.92618]
[1743699665860,3.2078,1776.5,1776.4,41.92618]
[1743699666064,4.33392,1776.5,1776.4,40.8]
[1743699667266,3.2078,1776.5,1776.4,41.92618]
[1743699667458,1.12631,1776.2,1776.1,0.00845379]
[1743699668065,3.37751,1776.2,1776.1,1.13482379]
[1743699668266,3.37751,1776.2,1776.1,0.00845379]
[1743699668459,3.37751,1776.2,1776.1,1.13482379]
[1743699668769,3.37751,1776.2,1776.1,0.00845379]
[1743699669368,5.87751,1776.2,1776.1,0.00845379]
[1743699669568,9.86451,1776.2,1776.1,0.00845379]
[1743699669762,2.81596,1776.1,1775.5,2.81684]
[1743699669971,3.2078,1775.9,1775.8,1.12655]
[1743699670171,3.2078,1775.9,1775.8,41.92655]
[1743699670761,3.2078,1775.9,1775.7,0.00845379]
[1743699670967,4.04736,1775.8,1775.7,1.13508379]
[1743699671168,2.9208,1775.8,1775.7,1.13508379]
[1743699671369,2.9208,1775.8,1775.7,41.93508379]
[1743699671759,4.04736,1775.8,1775.7,41.93508379]
[1743699672167,2.9208,1775.8,1775.7,41.93508379]
[1743699672671,4.04736,1775.8,1775.7,41.93508379]
[1743699674378,4.04736,1775.8,1775.7,40.80845379]
[1743699674566,4.04736,1775.8,1775.7,41.93508379]
[1743699675571,5.4208,1775.8,1775.0,8.78757]
[1743699675871,3.2078,1775.6,1775.3,1.12688]
[1743699676067,1.4383,1775.5,1775.1,43.6175]
[1743699676277,4.33468,1775.4,1775.3,1.12685]
[1743699676470,5.77818,1775.4,1775.3,1.12685]
[1743699676866,1.4435,1775.4,1775.3,1.12685]
[1743699677070,2.57032,1775.4,1775.3,1.12685]
[1743699677372,7.18952,1775.4,1775.3,1.12685]
[1743699677773,1.4114,1775.4,1775.3,1.12685]
[1743699678074,5.74602,1775.4,1775.3,1.12685]
[1743699678869,5.74602,1775.4,1775.3,1.12688]
[1743699679276,1.12688,1775.3,1775.2,0.00845379]
[1743699679476,2.53828,1775.3,1775.2,0.00845379]
[1743699679775,5.03828,1775.3,1775.2,0.00845379]
[1743699681374,1.12733,1774.7,1774.6,1.12729]
[1743699681775,1.12733,1774.7,1774.6,41.92729]
[1743699681972,2.64533,1774.7,1774.6,41.92729]
[1743699682572,2.64533,1774.7,1774.6,40.8]
[1743699682777,1.12733,1774.6,1774.5,0.00845379]
[1743699683077,1.12757,1774.3,1774.2,1.12756]
[1743699683274,3.2078,1774.3,1773.9,8.90812]
[1743699683474,4.33536,1774.3,1774.2,1.12758]
[1743699683873,3.2078,1774.3,1774.2,41.92758]
[1743699684073,2.81835,1774.6,1774.2,41.92758]
[1743699684074,1.12736,1774.6,1774.5,1.12736]
[1743699684381,4.33506,1774.7,1774.6,1.12733]
[1743699684581,4.33511,1774.7,1774.6,1.12733]
[1743699684779,0.00845379,1774.8,1774.7,1.12726]
[1743699684968,0.00845379,1774.8,1774.5,5.386]
[1743699685174,0.00845379,1774.8,1774.7,1.12726]
[1743699686073,0.00845379,1774.8,1774.7,1.85286]
[1743699686577,0.00845379,1774.8,1774.7,42.65286]
[1743699687582,1.13565379,1774.8,1774.7,42.65286]
[1743699688383,4.34345379,1774.8,1774.7,41.92726]
[1743699688579,4.34345379,1774.8,1774.7,1.12726]
[1743699688780,0.00845379,1774.8,1774.7,1.12726]
[1743699689185,0.00845379,1774.8,1774.7,41.92726]
[1743699689383,0.00845379,1774.8,1774.7,44.42726]
[1743699689680,4.33476,1775.2,1775.1,1.12701]
[1743699689889,3.2078,1775.2,1775.1,1.12701]
[1743699690383,4.33474,1775.2,1775.1,1.12701]
[1743699690583,3.2078,1775.2,1775.1,1.12701]
[1743699691179,4.33474,1775.2,1775.1,1.12701]
[1743699691385,4.33474,1775.2,1775.0,1.12702]
[1743699691386,1.12704,1775.1,1775.0,1.12702]
[1743699691579,1.12719,1774.9,1774.8,1.12716]
[1743699691775,1.1272,1774.8,1774.7,1.8597]
[1743699691982,1.12729,1774.7,1774.6,1.12725]
[1743699692189,4.33509,1774.7,1774.6,1.12725]
[1743699692688,1.12733,1774.6,1774.5,40.8]
[1743699693383,1.12733,1774.6,1774.5,41.92739]
[1743699693888,1.12733,1774.6,1774.5,40.8]
[1743699694087,2.61453,1774.6,1774.5,40.8]
[1743699694384,1.12733,1774.6,1774.5,41.92739]
[1743699695784,2.63253,1774.6,1774.5,41.92739]
[1743699697284,2.63253,1774.6,1774.5,40.8]
[1743699697589,1.12752,1774.3,1774.2,1.12753]
[1743699697789,4.33532,1774.3,1774.2,1.12753]
[1743699698289,4.33532,1774.3,1774.2,41.92753]
[1743699698791,4.33532,1774.3,1774.2,40.8]
[1743699699686,1.12758,1774.2,1774.1,1.13604379]
[1743699699887,2.52048,1774.2,1774.1,0.00845379]
[1743699700183,6.45188,1774.2,1774.1,40.80845379]
[1743699700382,6.45188,1774.2,1773.2,7.1968]
[1743699700383,2.81933,1774.0,1773.2,7.1968]
[1743699700584,1.128,1773.6,1773.5,1.12801]
[1743699700788,4.33566,1773.8,1773.5,40.8]
[1743699701092,5.72853,1773.8,1773.7,1.1279]
[1743699701282,1.12796,1773.6,1773.5,41.928]
[1743699701587,4.33576,1773.6,1773.5,40.8]
[1743699701781,4.33576,1773.6,1773.5,41.92802]
[1743699701989,3.2078,1773.6,1773.5,41.92802]
[1743699702788,3.24438,1773.8,1773.5,40.8]
[1743699702789,5.05929,1773.8,1773.5,40.8]
[1743699702985,1.1279,1773.7,1773.6,1.12793]
[1743699703290,3.9314,1773.8,1773.7,1.1279]
[1743699703490,3.2078,1773.8,1773.7,1.1279]
[1743699704082,4.33563,1773.8,1773.7,1.1279]
[1743699704286,3.2078,1773.8,1773.7,1.1279]
[1743699704481,4.33567,1773.8,1773.7,1.1279]
[1743699704684,3.2078,1773.8,1773.7,1.1279]
[1743699704888,4.33563,1773.8,1773.7,1.1279]
[1743699705287,3.2078,1773.8,1773.5,40.8]
[1743699705583,4.33576,1773.6,1773.5,40.8]
[1743699706100,3.2078,1773.6,1773.5,41.92802]
[1743699706594,3.2078,1773.6,1773.5,43.42682]
[1743699707283,4.33576,1773.6,1773.5,43.42682]
[1743699707689,4.33576,1773.6,1773.5,41.92802]
[1743699708393,3.2078,1773.6,1773.5,41.92802]
[1743699708996,4.33576,1773.6,1773.5,41.92802]
[1743699709897,3.2078,1773.6,1773.5,41.92802]
[1743699710088,3.2078,1773.6,1773.5,43.35162]
[1743699710790,4.33568,1773.8,1773.7,1.1279]
[1743699710995,3.2078,1773.8,1773.7,1.1279]
[1743699712498,4.33563,1773.8,1773.7,1.1279]
[1743699712796,3.2078,1773.8,1773.7,1.1279]
[1743699712999,4.33563,1773.8,1773.7,1.1279]
[1743699713498,3.2078,1773.8,1773.7,1.1279]
[1743699713702,3.2078,1773.8,1773.7,2.5183]
[1743699714193,4.33563,1773.8,1773.7,2.5183]
[1743699714599,3.2078,1773.8,1773.7,2.5183]
[1743699715002,1.12781,1773.9,1773.8,1.12783]
[1743699715896,1.5032,1773.9,1773.8,1.12783]
[1743699716099,3.2078,1774.0,1773.9,1.12777]
[1743699716301,4.711,1774.2,1774.1,1.12764]
[1743699717201,4.711,1774.2,1774.1,2.66294]
[1743699717402,3.2078,1774.2,1774.1,2.66294]
[1743699717707,0.00845379,1774.3,1774.2,1.12758]
[1743699717899,0.00845379,1774.3,1774.2,3.39098]
[1743699719411,3.21625379,1774.3,1774.2,3.39098]
[1743699719608,0.00845379,1774.3,1774.2,3.39098]
[1743699719803,1.44345379,1774.3,1774.2,3.39098]
[1743699720702,0.00845379,1774.3,1774.2,3.39098]
[1743699722409,3.79e-06,1774.3,1774.2,5.89098]
[1743699722907,3.79e-06,1774.3,1774.2,11.86098]
[1743699723094,3.79e-06,1774.3,1774.2,52.66098]
[1743699723296,3.79e-06,1774.3,1774.2,50.16098]
[1743699723895,3.79e-06,1774.3,1774.2,55.86878]
[1743699724507,3.79e-06,1774.3,1774.2,53.36878]
[1743699724708,3.79e-06,1774.3,1774.2,51.38878]
[1743699725007,3.79e-06,1774.3,1774.2,53.88878]
[1743699725205,3.79e-06,1774.3,1774.2,59.85878]
[1743699728913,3.79e-06,1774.3,1774.2,59.85778]
[1743699730102,3.79e-06,1774.3,1774.2,53.36878]
[1743699730305,1.12769,1774.1,1773.9,5.97]
[1743699730500,5.31885379,1774.3,1773.9,1.12777]
[1743699730501,4.6982,1774.0,1773.9,1.12777]
[1743699730816,1.4904,1774.0,1773.9,41.92777]
[1743699732709,3.79e-06,1774.3,1774.2,1.12758]
[1743699732908,3.79e-06,1774.3,1774.2,8.32438]
[1743699733110,3.79e-06,1774.3,1774.2,10.82438]
[1743699733411,3.79e-06,1774.3,1774.2,51.62438]
[1743699733714,3.79e-06,1774.3,1774.2,53.06168]
[1743699733911,3.79e-06,1774.3,1774.2,49.85388]
[1743699734113,3.79e-06,1774.3,1774.2,53.06168]
[1743699734611,3.79e-06,1774.3,1774.2,49.85388]
[1743699734813,3.79e-06,1774.3,1774.2,53.06168]
[1743699735215,3.79e-06,1774.3,1774.2,59.03168]
[1743699739413,3.79e-06,1774.3,1774.2,49.33488]
[1743699739608,3.79e-06,1774.3,1774.2,41.92758]
[1743699739815,3.79e-06,1774.3,1774.2,5.11658]
[1743699740017,3.79e-06,1774.3,1774.2,14.99538]
[1743699740416,3.79e-06,1774.3,1774.2,55.79538]
[1743699740920,3.79e-06,1774.3,1774.2,53.29538]
[1743699741715,3.79e-06,1774.3,1774.2,51.88658]
[1743699741923,3.79e-06,1774.3,1774.2,54.38658]
[1743699742129,3.79e-06,1774.3,1774.2,55.82278]
[1743699742329,3.79e-06,1774.3,1774.2,47.89758]
[1743699742920,1.45500379,1774.3,1774.2,47.89758]
[1743699743324,1.45500379,1774.3,1774.2,41.92758]
[1743699746724,1.45500379,1774.3,1774.2,45.91658]
[1743699748020,1.45500379,1774.3,1774.2,41.92758]
[1743699749319,5.08252379,1774.3,1774.2,41.92758]
[1743699750523,3.95500379,1774.3,1774.2,41.92758]
[1743699750722,5.08252379,1774.3,1774.2,41.92758]
[1743699751332,3.95500379,1774.3,1774.2,41.92758]
[1743699751629,5.08252379,1774.3,1774.2,41.92758]
[1743699753132,1.45500379,1774.3,1774.2,1.12758]
[1743699753328,2.58252379,1774.3,1774.2,1.12758]
[1743699753628,2.58252379,1774.3,1774.2,41.92758]
[1743699754332,5.08252379,1774.3,1774.2,40.8]
[1743699754630,5.08252379,1774.3,1774.2,41.92758]
[1743699755235,3.95500379,1774.3,1774.2,1.12758]
[1743699755430,1.45500379,1774.3,1774.2,1.12758]
[1743699755630,1.45500379,1774.3,1774.2,41.92758]
[1743699757235,3.95500379,1774.3,1773.9,2.81936]
[1743699757431,0.7557,1774.2,1774.1,1.12759]
[1743699757729,2.2186,1774.2,1774.1,41.92759]
[1743699758132,3.34618,1774.2,1774.1,41.92759]
[1743699758332,2.2186,1774.2,1774.1,41.92759]
[1743699761131,1.4629,1774.2,1774.1,41.92759]
[1743699761634,1.4629,1774.2,1774.1,45.91659]
[1743699761837,1.4629,1774.2,1774.1,47.45179]
[1743699763231,1.4629,1774.2,1774.1,41.92759]
[1743699763232,4.6707,1774.2,1774.1,41.92759]
[1743699763435,5.79828,1774.2,1774.1,1.12759]
[1743699763936,1.4629,1774.2,1774.1,1.12759]
[1743699764438,3.79e-06,1774.3,1774.1,1.12759]
[1743699764439,3.79e-06,1774.3,1774.2,1.12758]
[1743699764645,3.79e-06,1774.3,1774.2,3.37468]
[1743699764939,3.79e-06,1774.3,1774.2,12.55248]
[1743699765239,3.79e-06,1774.3,1774.2,53.35248]
[1743699765740,1.4457,1774.8,1774.7,1.12726]
[1743699765935,3.2078,1775.2,1775.1,1.12701]
[1743699766237,4.6807,1775.3,1775.2,1.12694]
[1743699766535,4.6807,1775.3,1775.2,41.92694]
[1743699770033,1.4729,1775.3,1775.2,41.92694]
[1743699770234,0.00845379,1775.4,1775.3,1.12688]
[1743699770542,0.00845379,1775.4,1775.3,6.58888]
[1743699770737,3.2078,1775.6,1775.5,1.12675]
[1743699770942,3.2078,1775.7,1775.6,1.12669]
[1743699771142,3.2078,1775.7,1775.6,2.60069]
[1743699771541,1.3924,1775.8,1775.7,1.12663]
[1743699772047,2.51896,1775.8,1775.7,1.12663]
[1743699772246,1.3924,1775.8,1775.7,1.12663]
[1743699774452,1.3924,1775.8,1775.7,2.63653]
[1743699775743,0.00845379,1775.9,1775.8,1.12656]
[1743699775940,3.2078,1776.3,1775.8,1.5276]
[1743699776147,3.2078,1776.1,1776.0,1.12638]
[1743699776343,4.33417,1776.1,1776.0,1.12638]
[1743699776648,5.76587,1776.1,1776.0,1.12638]
[1743699776948,1.4317,1776.1,1776.0,1.12638]
[1743699777135,4.6395,1776.1,1776.0,1.12638]
[1743699777340,1.4317,1776.1,1776.0,1.12638]
[1743699779849,0.00845379,1776.2,1776.1,1.12637]
[1743699780048,0.00845379,1776.2,1776.1,3.22437]
[1743699780246,0.00845379,1776.2,1776.0,5.11239]
[1743699780247,4.34261379,1776.2,1776.0,5.11239]
[1743699780444,2.6003,1776.1,1776.0,1.12644]
[1743699780747,1.4739,1776.1,1776.0,1.12644]
[1743699781353,2.60027,1776.1,1776.0,1.12644]
[1743699781549,2.6003,1776.1,1776.0,1.12644]
[1743699781751,1.4739,1776.1,1776.0,1.12644]
[1743699782349,2.60027,1776.1,1776.0,1.12644]
[1743699782940,1.12645,1776.0,1775.9,1.12645]
[1743699783146,1.12653,1775.9,1775.8,1.12652]
[1743699783343,4.7281,1776.0,1775.7,1.1266]
[1743699783344,1.12663,1775.8,1775.7,1.1266]
[1743699783541,1.12665,1775.7,1775.6,1.12665]
[1743699783753,1.12672,1775.6,1775.5,1.12672]
[1743699783950,5.76002,1775.6,1775.5,1.12672]
[1743699784345,1.12679,1775.5,1775.4,1.12678]
[1743699784544,2.55229,1775.5,1775.4,1.12678]
[1743699785154,1.4255,1775.5,1775.4,1.12678]
[1743699785750,3.2078,1775.8,1775.7,1.12663]
[1743699785947,3.2078,1775.8,1775.7,5.11163]
[1743699786355,4.6333,1775.8,1775.7,5.11163]
[1743699787352,4.6333,1775.8,1775.6,1.12664]
[1743699787553,2.1055,1775.7,1775.6,1.12664]
[1743699787750,1.4068,1775.7,1775.6,1.12664]
[1743699789145,2.53343,1775.7,1775.6,1.12664]
[1743699789342,3.28173,1775.7,1775.6,1.12664]
[1743699789540,3.28173,1775.7,1775.4,3.985]
[1743699789541,1.12675,1775.5,1775.4,5.11177]
[1743699789742,3.2078,1775.5,1775.2,40.8]
[1743699789955,4.33468,1775.3,1775.2,41.92692]
[1743699790555,5.08298,1775.3,1775.2,41.92692]
[1743699791157,3.9561,1775.3,1775.2,41.92692]
[1743699791656,5.3397,1775.3,1775.2,41.92692]
[1743699792354,4.5914,1775.3,1775.2,41.92692]
[1743699792554,1.3836,1775.3,1775.2,41.92692]
[1743699793946,4.5914,1775.3,1775.2,41.92692]
[1743699794853,5.71828,1775.3,1775.2,41.92692]
[1743699795050,8.21828,1775.3,1775.2,40.8]
[1743699795353,1.12728,1774.7,1774.6,1.12731]
[1743699795550,1.12733,1774.6,1774.5,1.12734]
[1743699795755,1.4578,1774.6,1774.5,41.92734]
[1743699796451,2.58513,1774.6,1774.5,40.8]
[1743699796845,3.35143,1774.6,1774.5,41.92739]
[1743699797649,2.2241,1774.6,1774.5,41.92739]
[1743699797953,1.4578,1774.6,1774.5,41.92739]
[1743699798172,1.4578,1774.6,1774.5,43.43979]
[1743699799054,0.00845379,1774.7,1774.6,1.12733]
[1743699799259,0.00845379,1774.7,1774.6,1.87313]
[1743699799764,1.52485379,1774.7,1774.6,1.87313]
[1743699800446,0.00845379,1774.7,1774.6,1.87313]
[1743699800850,1.52485379,1774.7,1774.6,1.87313]
[1743699801856,0.00845379,1774.7,1774.6,1.87313]
[1743699803150,1.5164,1775.0,1774.9,1.12713]
[1743699803351,3.2078,1775.1,1775.0,1.12707]
[1743699803559,3.2078,1775.1,1775.0,2.62467]
[1743699803961,3.2078,1775.1,1775.0,3.38187]
[1743699804263,4.33472,1775.3,1775.2,1.12694]
[1743699804759,1.12701,1775.2,1775.1,1.12698]
[1743699804966,1.12701,1775.2,1774.9,1.12708]
[1743699804967,1.12711,1775.0,1774.9,1.12708]
[1743699805152,3.2078,1775.0,1774.9,1.12708]
[1743699805564,4.33487,1775.0,1774.9,1.12708]
[1743699807356,1.12713,1774.9,1774.8,1.12715]
[1743699807559,3.2078,1775.0,1774.9,1.12713]
[1743699808059,4.33487,1775.0,1774.9,1.12713]
[1743699809364,1.12719,1774.9,1774.8,1.12715]
[1743699809762,5.06962,1775.0,1774.9,1.12713]
[1743699812470,1.12719,1774.9,1774.8,1.12715]
[1743699812772,5.06963,1775.0,1774.9,1.12713]
[1743699815061,1.12718,1774.9,1774.8,1.12714]
[1743699815672,2.81796,1774.9,1774.6,0.7572]
[1743699815864,4.3351,1774.7,1774.6,1.12726]
[1743699816570,1.12733,1774.6,1774.5,41.92733]
[1743699816772,2.52613,1774.6,1774.5,41.92733]
[1743699817473,1.3988,1774.6,1774.5,41.92733]
[1743699818565,3.2078,1774.7,1774.6,1.12733]
[1743699818872,1.12724,1774.8,1774.7,1.12722]
[1743699819267,1.1273,1774.7,1774.6,1.12726]
[1743699819467,4.3351,1774.7,1774.6,1.12726]
[1743699820169,4.3351,1774.7,1774.6,1.12727]
[1743699820170,1.1273,1774.7,1774.6,1.12727]
[1743699820577,2.5954,1774.7,1774.6,1.12727]
[1743699821471,1.4681,1774.7,1774.6,1.12727]
[1743699821674,3.2078,1774.8,1774.7,1.12726]
[1743699821975,5.8031,1774.8,1774.7,1.12726]
[1743699822173,4.6759,1774.8,1774.7,1.12726]
[1743699822676,5.8031,1774.8,1774.7,1.12726]
[1743699822878,4.6759,1774.8,1774.7,1.12726]
[1743699823578,1.12732,1774.7,1774.6,1.12728]
[1743699823780,2.56062,1774.7,1774.6,1.12728]
[1743699824478,1.4333,1774.7,1774.6,1.12728]
[1743699826870,2.56056,1774.7,1774.6,1.12728]
[1743699827779,1.4333,1774.7,1774.6,1.12728]
[1743699827977,3.2078,1774.8,1774.7,1.12726]
[1743699828374,4.335,1774.8,1774.7,1.12726]
[1743699828571,5.8317,1774.8,1774.7,1.12726]
[1743699829574,1.12733,1774.7,1774.6,1.12728]
[1743699829776,2.65193,1774.7,1774.6,1.12728]
[1743699832271,1.12733,1774.6,1774.5,41.92734]